fUST/lending_fUST_20260506
["ID","MTS","AMOUNT","RATE_DAILY","PERIOD"]
[421644944,1778013055000,-463.16297167,0.00012328,2]
[421644949,1778013055000,-500.0,0.00012328,2]
[421644948,1778013055000,-1334.62,0.00012328,2]
[421644953,1778013055000,-611.61,0.00012328,2]
[421644950,1778013055000,-1031.37,0.00012328,2]
[421644951,1778013055000,-500.0,0.00012328,2]
[421644952,1778013055000,-500.0,0.00012328,2]
[421644955,1778013055000,-640.91,0.00012328,2]
[421644954,1778013055000,-500.0,0.00012328,2]
[421644890,1778013055000,-907.31,0.00012328,2]
[421644923,1778013055000,-500.0,0.00012328,2]
[421644934,1778013055000,-500.0,0.00012328,2]
[421644937,1778013055000,-500.0,0.00012328,2]
[421644924,1778013055000,-500.0,0.00012328,2]
[421644935,1778013055000,-500.0,0.00012328,2]
[421644892,1778013055000,-500.0,0.00012328,2]
[421644894,1778013055000,-585.14,0.00012328,2]
[421644893,1778013055000,-500.0,0.00012328,2]
[421644889,1778013055000,-1000.0,0.00012328,2]
[421644908,1778013055000,-1384.25,0.00012328,2]
[421644909,1778013055000,-500.0,0.00012328,2]
[421644897,1778013055000,-500.0,0.00012328,2]
[421644900,1778013055000,-500.0,0.00012328,2]
[421644901,1778013055000,-500.0,0.00012328,2]
[421644903,1778013055000,-673.1,0.00012328,2]
[421644906,1778013055000,-500.0,0.00012328,2]
[421644899,1778013055000,-500.0,0.00012328,2]
[421644902,1778013055000,-477.73250152,0.00012328,2]
[421644905,1778013055000,-207.18121185,0.00012328,2]
[421644898,1778013055000,-500.0,0.00012328,2]
[421644907,1778013055000,-3247.81,0.00012328,2]
[421644921,1778013055000,-500.0,0.00012328,2]
[421644904,1778013055000,-500.0,0.00012328,2]
[421644920,1778013055000,-1621.54,0.00012328,2]
[421644922,1778013055000,-500.0,0.00012328,2]
[421644919,1778013055000,-500.0,0.00012328,2]
[421644917,1778013055000,-500.0,0.00012328,2]
[421644915,1778013055000,-500.0,0.00012328,2]
[421644918,1778013055000,-860.42,0.00012328,2]
[421644911,1778013055000,-500.0,0.00012328,2]
[421644914,1778013055000,-951.56,0.00012328,2]
[421644913,1778013055000,-500.0,0.00012328,2]
[421644910,1778013055000,-500.0,0.00012328,2]
[421644912,1778013055000,-500.0,0.00012328,2]
[421644916,1778013055000,-500.0,0.00012328,2]
[421644979,1778013056000,-500.0,0.00012328,2]
[421644986,1778013056000,-500.0,0.00012328,2]
[421644982,1778013056000,-500.0,0.00012328,2]
[421644983,1778013056000,-593.94,0.00012328,2]
[421644977,1778013056000,-252.55551177,0.00012328,2]
[421644981,1778013056000,-500.0,0.00012328,2]
[421644975,1778013056000,-500.0,0.00012328,2]
[421644985,1778013056000,-641.48305469,0.00012328,2]
[421644988,1778013056000,-3481.73,0.00012328,2]
[421644995,1778013056000,-500.0,0.00012328,2]
[421644989,1778013056000,-500.0,0.00012328,2]
[421644990,1778013056000,-500.0,0.00012328,2]
[421644992,1778013056000,-500.0,0.00012328,2]
[421644991,1778013056000,-500.0,0.00012328,2]
[421644993,1778013056000,-500.0,0.00012328,2]
[421644994,1778013056000,-500.0,0.00012328,2]
[421644997,1778013056000,-500.71,0.00012328,2]
[421644980,1778013056000,-790.4,0.00012328,2]
[421645000,1778013056000,-296.8641205,0.00012328,2]
[421644987,1778013056000,-500.0,0.00012328,2]
[421644978,1778013056000,-500.0,0.00012328,2]
[421644962,1778013056000,-468.90798288,0.00012328,2]
[421644973,1778013056000,-500.0,0.00012328,2]
[421644996,1778013056000,-500.0,0.00012328,2]
[421644957,1778013056000,-500.0,0.00012328,2]
[421644958,1778013056000,-500.0,0.00012328,2]
[421644956,1778013056000,-542.5071256,0.00012328,2]
[421644960,1778013056000,-3228.82,0.00012328,2]
[421644959,1778013056000,-500.0,0.00012328,2]
[421644961,1778013056000,-1571.17,0.00012328,2]
[421644963,1778013056000,-500.0,0.00012328,2]
[421644964,1778013056000,-500.0,0.00012328,2]
[421644971,1778013056000,-500.0,0.00012328,2]
[421644967,1778013056000,-534.49,0.00012328,2]
[421644965,1778013056000,-500.0,0.00012328,2]
[421644970,1778013056000,-500.0,0.00012328,2]
[421644968,1778013056000,-500.0,0.00012328,2]
[421644972,1778013056000,-351.98782474,0.00012328,2]
[421644966,1778013056000,-500.0,0.00012328,2]
[421644969,1778013056000,-500.0,0.00012328,2]
[421644984,1778013056000,-1892.54,0.00012328,2]
[421644974,1778013056000,-500.0,0.00012328,2]
[421644976,1778013056000,-717.2695,0.00012328,2]
[421644998,1778013056000,-500.0,0.00012328,2]
[421645001,1778013056000,-500.0,0.00012328,2]
[421644999,1778013056000,-500.0,0.00012328,2]
[421645019,1778013056000,-706.73,0.00012328,2]
[421645027,1778013056000,-457.31148463,0.00012328,2]
[421645036,1778013056000,-500.0,0.00012328,2]
[421645026,1778013056000,-733.39,0.00012328,2]
[421645035,1778013056000,-500.0,0.00012328,2]
[421645037,1778013056000,-500.0,0.00012328,2]
[421645034,1778013056000,-500.0,0.00012328,2]
[421645031,1778013056000,-500.0,0.00012328,2]
[421645032,1778013056000,-500.0,0.00012328,2]
[421645029,1778013056000,-500.0,0.00012328,2]
[421645033,1778013056000,-500.0,0.00012328,2]
[421645028,1778013056000,-500.0,0.00012328,2]
[421645039,1778013056000,-547.65251542,0.00012328,2]
[421645038,1778013056000,-5733.83,0.00012328,2]
[421645040,1778013056000,-500.0,0.00012328,2]
[421645041,1778013056000,-435.56582206,0.00012328,2]
[421645042,1778013056000,-500.0,0.00012328,2]
[421645043,1778013056000,-500.0,0.00012328,2]
[421645044,1778013056000,-500.0,0.00012328,2]
[421645022,1778013056000,-500.0,0.00012328,2]
[421645023,1778013056000,-500.0,0.00012328,2]
[421645030,1778013056000,-500.0,0.00012328,2]
[421645017,1778013056000,-500.0,0.00012328,2]
[421645025,1778013056000,-500.0,0.00012328,2]
[421645003,1778013056000,-500.0,0.00012328,2]
[421645009,1778013056000,-1391.42,0.00012328,2]
[421645012,1778013056000,-500.0,0.00012328,2]
[421645011,1778013056000,-500.0,0.00012328,2]
[421645013,1778013056000,-500.0,0.00012328,2]
[421645002,1778013056000,-500.0,0.00012328,2]
[421645005,1778013056000,-1076.85,0.00012328,2]
[421645004,1778013056000,-500.0,0.00012328,2]
[421645010,1778013056000,-500.0,0.00012328,2]
[421645006,1778013056000,-262.83474243,0.00012328,2]
[421645007,1778013056000,-500.0,0.00012328,2]
[421645014,1778013056000,-500.0,0.00012328,2]
[421645016,1778013056000,-500.0,0.00012328,2]
[421645021,1778013056000,-500.0,0.00012328,2]
[421645024,1778013056000,-515.72,0.00012328,2]
[421645018,1778013056000,-500.0,0.00012328,2]
[421645020,1778013056000,-500.0,0.00012328,2]
[421645008,1778013056000,-500.0,0.00012328,2]
[421645015,1778013056000,-500.0,0.00012328,2]
[421645083,1778013057000,-538.46,0.00012328,2]
[421645087,1778013057000,-582.71,0.00012328,2]
[421645079,1778013057000,-980.59,0.00012328,2]
[421645084,1778013057000,-500.0,0.00012328,2]
[421645082,1778013057000,-3412.82,0.00012328,2]
[421645086,1778013057000,-500.0,0.00012328,2]
[421645085,1778013057000,-500.0,0.00012328,2]
[421645081,1778013057000,-940.12,0.00012328,2]
[421645077,1778013057000,-500.0,0.00012328,2]
[421645088,1778013057000,-500.0,0.00012328,2]
[421645092,1778013057000,-2715.45,0.00012328,2]
[421645089,1778013057000,-500.0,0.00012328,2]
[421645080,1778013057000,-500.0,0.00012328,2]
[421645090,1778013057000,-500.0,0.00012328,2]
[421645095,1778013057000,-500.0,0.00012328,2]
[421645094,1778013057000,-500.0,0.00012328,2]
[421645101,1778013057000,-500.0,0.00012328,2]
[421645096,1778013057000,-500.0,0.00012328,2]
[421645099,1778013057000,-885.18,0.00012328,2]
[421645102,1778013057000,-500.0,0.00012328,2]
[421645100,1778013057000,-500.0,0.00012328,2]
[421645098,1778013057000,-2617.77,0.00012328,2]
[421645097,1778013057000,-500.0,0.00012328,2]
[421645114,1778013057000,-500.0,0.00012328,2]
[421645115,1778013057000,-603.85,0.00012328,2]
[421645104,1778013057000,-500.0,0.00012328,2]
[421645103,1778013057000,-500.0,0.00012328,2]
[421645078,1778013057000,-500.0,0.00012328,2]
[421645093,1778013057000,-3394.29,0.00012328,2]
[421645068,1778013057000,-500.0,0.00012328,2]
[421645051,1778013057000,-2721.68,0.00012328,2]
[421645076,1778013057000,-505.47,0.00012328,2]
[421645049,1778013057000,-500.0,0.00012328,2]
[421645045,1778013057000,-500.0,0.00012328,2]
[421645050,1778013057000,-2842.66,0.00012328,2]
[421645048,1778013057000,-9873.12,0.00012328,2]
[421645046,1778013057000,-500.0,0.00012328,2]
[421645047,1778013057000,-500.0,0.00012328,2]
[421645052,1778013057000,-1174.85,0.00012328,2]
[421645062,1778013057000,-2061.88,0.00012328,2]
[421645063,1778013057000,-2840.15,0.00012328,2]
[421645111,1778013057000,-5595.74,0.00012328,2]
[421645053,1778013057000,-500.0,0.00012328,2]
[421645060,1778013057000,-500.0,0.00012328,2]
[421645055,1778013057000,-8540.26,0.00012328,2]
[421645054,1778013057000,-500.0,0.00012328,2]
[421645061,1778013057000,-500.0,0.00012328,2]
[421645058,1778013057000,-500.0,0.00012328,2]
[421645059,1778013057000,-500.0,0.00012328,2]
[421645056,1778013057000,-3567.82,0.00012328,2]
[421645057,1778013057000,-225.93953076,0.00012328,2]
[421645066,1778013057000,-734.4,0.00012328,2]
[421645064,1778013057000,-1379.33,0.00012328,2]
[421645065,1778013057000,-866.4,0.00012328,2]
[421645067,1778013057000,-500.0,0.00012328,2]
[421645069,1778013057000,-500.0,0.00012328,2]
[421645072,1778013057000,-500.0,0.00012328,2]
[421645075,1778013057000,-500.0,0.00012328,2]
[421645074,1778013057000,-500.0,0.00012328,2]
[421645071,1778013057000,-770.74,0.00012328,2]
[421645073,1778013057000,-500.0,0.00012328,2]
[421645070,1778013057000,-500.0,0.00012328,2]
[421645106,1778013057000,-2195.17,0.00012328,2]
[421645091,1778013057000,-502.38,0.00012328,2]
[421645105,1778013057000,-1698.72,0.00012328,2]
[421645143,1778013057000,-500.0,0.00012328,2]
[421645144,1778013057000,-500.0,0.00012328,2]
[421645145,1778013057000,-4895.33,0.00012328,2]
[421645153,1778013057000,-8921.17,0.00012328,2]
[421645147,1778013057000,-1646.04,0.00012328,2]
[421645146,1778013057000,-44257.27,0.00012328,2]
[421645150,1778013057000,-1798.14,0.00012328,2]
[421645151,1778013057000,-1966.75,0.00012328,2]
[421645154,1778013057000,-2669.05,0.00012328,2]
[421645149,1778013057000,-872.59,0.00012328,2]
[421645148,1778013057000,-500.0,0.00012328,2]
[421645152,1778013057000,-500.0,0.00012328,2]
[421645155,1778013057000,-500.0,0.00012328,2]
[421645142,1778013057000,-500.0,0.00012328,2]
[421645156,1778013057000,-3749.41,0.00012328,2]
[421645164,1778013057000,-500.0,0.00012328,2]
[421645157,1778013057000,-579.1,0.00012328,2]
[421645166,1778013057000,-500.0,0.00012328,2]
[421645167,1778013057000,-500.0,0.00012328,2]
[421645159,1778013057000,-785.78,0.00012328,2]
[421645165,1778013057000,-2774.27,0.00012328,2]
[421645163,1778013057000,-500.0,0.00012328,2]
[421645162,1778013057000,-500.0,0.00012328,2]
[421645160,1778013057000,-500.0,0.00012328,2]
[421645161,1778013057000,-814.41,0.00012328,2]
[421645169,1778013057000,-500.0,0.00012328,2]
[421645170,1778013057000,-9357.54,0.00012328,2]
[421645168,1778013057000,-1186.69,0.00012328,2]
[421645158,1778013057000,-288.971898,0.00012328,2]
[421645136,1778013057000,-577.66,0.00012328,2]
[421645171,1778013057000,-3924.94,0.00012328,2]
[421645134,1778013057000,-500.0,0.00012328,2]
[421645135,1778013057000,-642.3,0.00012328,2]
[421645107,1778013057000,-500.0,0.00012328,2]
[421645113,1778013057000,-500.0,0.00012328,2]
[421645109,1778013057000,-500.0,0.00012328,2]
[421645110,1778013057000,-7957.64,0.00012328,2]
[421645112,1778013057000,-500.0,0.00012328,2]
[421645117,1778013057000,-596.63,0.00012328,2]
[421645116,1778013057000,-500.0,0.00012328,2]
[421645121,1778013057000,-500.0,0.00012328,2]
[421645119,1778013057000,-2449.09,0.00012328,2]
[421645120,1778013057000,-7048.81,0.00012328,2]
[421645128,1778013057000,-500.0,0.00012328,2]
[421645123,1778013057000,-2015.85,0.00012328,2]
[421645122,1778013057000,-500.0,0.00012328,2]
[421645118,1778013057000,-1765.48,0.00012328,2]
[421645108,1778013057000,-3472.73,0.00012328,2]
[421645124,1778013057000,-500.0,0.00012328,2]
[421645127,1778013057000,-597.09,0.00012328,2]
[421645138,1778013057000,-1127.91,0.00012328,2]
[421645139,1778013057000,-500.0,0.00012328,2]
[421645137,1778013057000,-569.43,0.00012328,2]
[421645132,1778013057000,-500.0,0.00012328,2]
[421645131,1778013057000,-500.0,0.00012328,2]
[421645133,1778013057000,-500.0,0.00012328,2]
[421645141,1778013057000,-2098.95,0.00012328,2]
[421645140,1778013057000,-2821.94,0.00012328,2]
[421645130,1778013057000,-611.86853044,0.00012328,2]
[421645126,1778013057000,-500.0,0.00012328,2]
[421645125,1778013057000,-500.0,0.00012328,2]
[421645172,1778013057000,-500.0,0.00012328,2]
[421645129,1778013057000,-412.78387228,0.00012328,2]
[421645216,1778013058000,-300.0,0.00012574,2]
[421645212,1778013058000,-300.0,0.00012574,2]
[421645211,1778013058000,-300.0,0.00012574,2]
[421645210,1778013058000,-300.0,0.00012574,2]
[421645218,1778013058000,-600.0,0.00012574,2]
[421645209,1778013058000,-300.0,0.00012574,2]
[421645206,1778013058000,-300.0,0.00012574,2]
[421645207,1778013058000,-300.0,0.00012574,2]
[421645208,1778013058000,-300.0,0.00012574,2]
[421645217,1778013058000,-300.0,0.00012574,2]
[421645215,1778013058000,-300.0,0.00012574,2]
[421645214,1778013058000,-300.0,0.00012574,2]
[421645225,1778013058000,-500.0,0.00012601,2]
[421645220,1778013058000,-151.0,0.000126,2]
[421645221,1778013058000,-500.0,0.00012601,2]
[421645219,1778013058000,-151.0,0.000126,2]
[421645223,1778013058000,-500.0,0.00012601,2]
[421645222,1778013058000,-500.0,0.00012601,2]
[421645200,1778013058000,-741.0,0.00012522,2]
[421645224,1778013058000,-500.0,0.00012601,2]
[421645230,1778013058000,-500.0,0.00012601,2]
[421645231,1778013058000,-500.0,0.00012601,2]
[421645227,1778013058000,-500.0,0.00012601,2]
[421645228,1778013058000,-500.0,0.00012601,2]
[421645226,1778013058000,-500.0,0.00012601,2]
[421645229,1778013058000,-500.0,0.00012601,2]
[421645233,1778013058000,-500.0,0.00012601,2]
[421645213,1778013058000,-300.0,0.00012574,2]
[421645203,1778013058000,-300.0,0.00012574,2]
[421645195,1778013058000,-11786.29801161,0.000125,2]
[421645201,1778013058000,-185.0,0.00012522,2]
[421645236,1778013058000,-500.0,0.00012601,2]
[421645178,1778013058000,-569.16058649,0.00012328,2]
[421645177,1778013058000,-500.0,0.00012328,2]
[421645179,1778013058000,-651.35,0.00012328,2]
[421645180,1778013058000,-1308.12,0.00012328,2]
[421645175,1778013058000,-500.0,0.00012328,2]
[421645176,1778013058000,-500.0,0.00012328,2]
[421645173,1778013058000,-500.0,0.00012328,2]
[421645174,1778013058000,-1176.0,0.00012328,2]
[421645183,1778013058000,-500.0,0.00012328,2]
[421645190,1778013058000,-8894.28,0.00012328,2]
[421645182,1778013058000,-4115.09,0.00012328,2]
[421645191,1778013058000,-500.0,0.00012328,2]
[421645202,1778013058000,-451.7759143,0.00012574,2]
[421645192,1778013058000,-334.46,0.00012329,2]
[421645181,1778013058000,-500.0,0.00012328,2]
[421645186,1778013058000,-500.0,0.00012328,2]
[421645187,1778013058000,-2158.14,0.00012328,2]
[421645188,1778013058000,-500.0,0.00012328,2]
[421645189,1778013058000,-500.0,0.00012328,2]
[421645193,1778013058000,-301.97,0.00012329,2]
[421645194,1778013058000,-163.38353254,0.00012468,2]
[421645204,1778013058000,-300.0,0.00012574,2]
[421645196,1778013058000,-253.521,0.00012509,2]
[421645205,1778013058000,-300.0,0.00012574,2]
[421645199,1778013058000,-442.0,0.00012522,2]
[421645197,1778013058000,-1411.0,0.00012522,2]
[421645198,1778013058000,-2214.0,0.00012522,2]
[421645184,1778013058000,-500.0,0.00012328,2]
[421645185,1778013058000,-2044.75,0.00012328,2]
[421645237,1778013058000,-500.0,0.00012601,2]
[421645234,1778013058000,-500.0,0.00012601,2]
[421645272,1778013058000,-500.0,0.00012601,2]
[421645280,1778013058000,-500.0,0.00012602,2]
[421645271,1778013058000,-500.0,0.00012601,2]
[421645269,1778013058000,-500.0,0.00012601,2]
[421645275,1778013058000,-500.0,0.00012601,2]
[421645276,1778013058000,-522.09596738,0.00012601,2]
[421645277,1778013058000,-500.0,0.00012602,2]
[421645273,1778013058000,-500.0,0.00012601,2]
[421645274,1778013058000,-500.0,0.00012601,2]
[421645278,1778013058000,-1293.48,0.00012602,2]
[421645279,1778013058000,-500.0,0.00012602,2]
[421645282,1778013058000,-758.47,0.00012602,2]
[421645284,1778013058000,-500.0,0.00012602,2]
[421645270,1778013058000,-500.0,0.00012601,2]
[421645287,1778013058000,-500.0,0.00012602,2]
[421645286,1778013058000,-500.0,0.00012602,2]
[421645288,1778013058000,-500.0,0.00012602,2]
[421645289,1778013058000,-500.0,0.00012602,2]
[421645285,1778013058000,-500.0,0.00012602,2]
[421645291,1778013058000,-500.0,0.00012602,2]
[421645290,1778013058000,-500.0,0.00012602,2]
[421645293,1778013058000,-500.0,0.00012602,2]
[421645292,1778013058000,-500.0,0.00012602,2]
[421645295,1778013058000,-500.0,0.00012602,2]
[421645294,1778013058000,-365.91344144,0.00012602,2]
[421645296,1778013058000,-500.0,0.00012602,2]
[421645297,1778013058000,-500.0,0.00012602,2]
[421645238,1778013058000,-500.0,0.00012601,2]
[421645283,1778013058000,-500.0,0.00012602,2]
[421645266,1778013058000,-500.0,0.00012601,2]
[421645281,1778013058000,-513.61595632,0.00012602,2]
[421645263,1778013058000,-500.0,0.00012601,2]
[421645232,1778013058000,-500.0,0.00012601,2]
[421645262,1778013058000,-500.0,0.00012601,2]
[421645235,1778013058000,-500.0,0.00012601,2]
[421645239,1778013058000,-500.0,0.00012601,2]
[421645240,1778013058000,-500.0,0.00012601,2]
[421645242,1778013058000,-500.0,0.00012601,2]
[421645241,1778013058000,-500.0,0.00012601,2]
[421645243,1778013058000,-500.0,0.00012601,2]
[421645244,1778013058000,-500.0,0.00012601,2]
[421645247,1778013058000,-500.0,0.00012601,2]
[421645248,1778013058000,-500.0,0.00012601,2]
[421645249,1778013058000,-500.0,0.00012601,2]
[421645250,1778013058000,-500.0,0.00012601,2]
[421645251,1778013058000,-500.0,0.00012601,2]
[421645253,1778013058000,-500.0,0.00012601,2]
[421645246,1778013058000,-500.0,0.00012601,2]
[421645259,1778013058000,-500.0,0.00012601,2]
[421645260,1778013058000,-500.0,0.00012601,2]
[421645245,1778013058000,-500.0,0.00012601,2]
[421645261,1778013058000,-500.0,0.00012601,2]
[421645264,1778013058000,-500.0,0.00012601,2]
[421645265,1778013058000,-500.0,0.00012601,2]
[421645258,1778013058000,-500.0,0.00012601,2]
[421645257,1778013058000,-500.0,0.00012601,2]
[421645267,1778013058000,-500.0,0.00012601,2]
[421645256,1778013058000,-500.0,0.00012601,2]
[421645255,1778013058000,-500.0,0.00012601,2]
[421645252,1778013058000,-500.0,0.00012601,2]
[421645254,1778013058000,-500.0,0.00012601,2]
[421645268,1778013058000,-500.0,0.00012601,2]
[421645337,1778013059000,-500.0,0.00012602,2]
[421645341,1778013059000,-500.0,0.00012602,2]
[421645344,1778013059000,-500.0,0.00012602,2]
[421645345,1778013059000,-500.0,0.00012602,2]
[421645340,1778013059000,-500.0,0.00012602,2]
[421645338,1778013059000,-500.0,0.00012602,2]
[421645329,1778013059000,-500.0,0.00012602,2]
[421645336,1778013059000,-582.48,0.00012602,2]
[421645334,1778013059000,-1575.26,0.00012602,2]
[421645335,1778013059000,-500.0,0.00012602,2]
[421645328,1778013059000,-500.0,0.00012602,2]
[421645339,1778013059000,-500.0,0.00012602,2]
[421645357,1778013059000,-501.63,0.00012602,2]
[421645347,1778013059000,-644.6848775,0.00012602,2]
[421645356,1778013059000,-1318.91,0.00012602,2]
[421645346,1778013059000,-500.0,0.00012602,2]
[421645343,1778013059000,-500.0,0.00012602,2]
[421645348,1778013059000,-500.0,0.00012602,2]
[421645360,1778013059000,-577.6,0.00012602,2]
[421645358,1778013059000,-500.0,0.00012602,2]
[421645352,1778013059000,-502.23,0.00012602,2]
[421645355,1778013059000,-500.0,0.00012602,2]
[421645351,1778013059000,-500.0,0.00012602,2]
[421645354,1778013059000,-500.0,0.00012602,2]
[421645359,1778013059000,-500.0,0.00012602,2]
[421645353,1778013059000,-500.0,0.00012602,2]
[421645350,1778013059000,-500.0,0.00012602,2]
[421645349,1778013059000,-500.0,0.00012602,2]
[421645330,1778013059000,-596.11,0.00012602,2]
[421645342,1778013059000,-522.57,0.00012602,2]
[421645331,1778013059000,-500.0,0.00012602,2]
[421645305,1778013059000,-500.0,0.00012602,2]
[421645327,1778013059000,-500.0,0.00012602,2]
[421645306,1778013059000,-500.0,0.00012602,2]
[421645303,1778013059000,-227.55585596,0.00012602,2]
[421645299,1778013059000,-500.0,0.00012602,2]
[421645300,1778013059000,-500.0,0.00012602,2]
[421645298,1778013059000,-500.0,0.00012602,2]
[421645302,1778013059000,-500.0,0.00012602,2]
[421645301,1778013059000,-500.0,0.00012602,2]
[421645304,1778013059000,-897.91,0.00012602,2]
[421645307,1778013059000,-500.0,0.00012602,2]
[421645309,1778013059000,-500.0,0.00012602,2]
[421645310,1778013059000,-500.0,0.00012602,2]
[421645318,1778013059000,-500.0,0.00012602,2]
[421645311,1778013059000,-2874.1054,0.00012602,2]
[421645308,1778013059000,-500.0,0.00012602,2]
[421645312,1778013059000,-500.0,0.00012602,2]
[421645315,1778013059000,-500.0,0.00012602,2]
[421645320,1778013059000,-500.0,0.00012602,2]
[421645319,1778013059000,-500.0,0.00012602,2]
[421645313,1778013059000,-626.8766393,0.00012602,2]
[421645316,1778013059000,-500.0,0.00012602,2]
[421645317,1778013059000,-588.8,0.00012602,2]
[421645314,1778013059000,-500.0,0.00012602,2]
[421645321,1778013059000,-500.0,0.00012602,2]
[421645323,1778013059000,-500.0,0.00012602,2]
[421645333,1778013059000,-500.0,0.00012602,2]
[421645332,1778013059000,-500.0,0.00012602,2]
[421645322,1778013059000,-500.0,0.00012602,2]
[421645324,1778013059000,-500.0,0.00012602,2]
[421645326,1778013059000,-734.14,0.00012602,2]
[421645325,1778013059000,-500.0,0.00012602,2]
[421645362,1778013059000,-500.0,0.00012602,2]
[421645387,1778013059000,-500.0,0.00012602,2]
[421645373,1778013059000,-500.0,0.00012602,2]
[421645388,1778013059000,-549.69,0.00012602,2]
[421645394,1778013059000,-500.0,0.00012602,2]
[421645400,1778013059000,-3005.81,0.00012602,2]
[421645401,1778013059000,-1608.24,0.00012602,2]
[421645411,1778013059000,-678.53,0.00012602,2]
[421645412,1778013059000,-500.0,0.00012602,2]
[421645409,1778013059000,-500.0,0.00012602,2]
[421645406,1778013059000,-500.0,0.00012602,2]
[421645402,1778013059000,-500.0,0.00012602,2]
[421645410,1778013059000,-832.52,0.00012602,2]
[421645408,1778013059000,-500.0,0.00012602,2]
[421645407,1778013059000,-500.0,0.00012602,2]
[421645403,1778013059000,-500.0,0.00012602,2]
[421645404,1778013059000,-500.0,0.00012602,2]
[421645405,1778013059000,-1561.35,0.00012602,2]
[421645413,1778013059000,-505.37,0.00012602,2]
[421645414,1778013059000,-907.31,0.00012602,2]
[421645417,1778013059000,-500.0,0.00012602,2]
[421645424,1778013059000,-500.0,0.00012602,2]
[421645423,1778013059000,-500.0,0.00012602,2]
[421645415,1778013059000,-500.0,0.00012602,2]
[421645422,1778013059000,-673.1,0.00012602,2]
[421645425,1778013059000,-3247.81,0.00012602,2]
[421645416,1778013059000,-585.14,0.00012602,2]
[421645421,1778013059000,-500.0,0.00012602,2]
[421645418,1778013059000,-500.0,0.00012602,2]
[421645419,1778013059000,-500.0,0.00012602,2]
[421645426,1778013059000,-1384.25,0.00012602,2]
[421645372,1778013059000,-500.0,0.00012602,2]
[421645395,1778013059000,-500.0,0.00012602,2]
[421645393,1778013059000,-500.0,0.00012602,2]
[421645420,1778013059000,-500.0,0.00012602,2]
[421645392,1778013059000,-605.46,0.00012602,2]
[421645399,1778013059000,-500.0,0.00012602,2]
[421645367,1778013059000,-500.0,0.00012602,2]
[421645371,1778013059000,-500.0,0.00012602,2]
[421645361,1778013059000,-2249.89,0.00012602,2]
[421645365,1778013059000,-500.0,0.00012602,2]
[421645363,1778013059000,-500.0,0.00012602,2]
[421645369,1778013059000,-500.0,0.00012602,2]
[421645366,1778013059000,-500.0,0.00012602,2]
[421645370,1778013059000,-500.0,0.00012602,2]
[421645368,1778013059000,-500.0,0.00012602,2]
[421645374,1778013059000,-500.0,0.00012602,2]
[421645386,1778013059000,-500.0,0.00012602,2]
[421645382,1778013059000,-500.0,0.00012602,2]
[421645384,1778013059000,-594.31,0.00012602,2]